[Event "*** Titled Tuesday Blitz"]
[Site "Chess.com"]
[Date "2020.12.29"]
[Round "4"]
[White "Roza_Idrisova"]
[Black "Godzillator"]
[Result "0-1"]
[WhiteElo "2167"]
[BlackElo "2319"]
[TimeControl "180+1"]
[EndTime "10:39:46 PST"]
[Termination "Godzillator won by resignation"]

1. d4 {[%clk 0:03:00.9]} 1... d5 {[%clk 0:02:59.5]} 2. Nf3 {[%clk 0:03:00]} 2...
Nf6 {[%clk 0:02:59.2]} 3. Bg5 {[%clk 0:02:59.9]} 3... Ne4 {[%clk 0:02:58.7]} 4.
Bf4 {[%clk 0:02:59.2]} 4... c6 {[%clk 0:02:58.3]} 5. c3 {[%clk 0:02:58.5]} 5...
Bg4 {[%clk 0:02:57.4]} 6. Nbd2 {[%clk 0:02:57.5]} 6... Nxd2 {[%clk 0:02:55.6]}
7. Qxd2 {[%clk 0:02:56.8]} 7... Nd7 {[%clk 0:02:55.2]} 8. h3 {[%clk 0:02:52.8]}
8... Bh5 {[%clk 0:02:54.7]} 9. e3 {[%clk 0:02:51.9]} 9... e6 {[%clk 0:02:53.2]}
10. Be2 {[%clk 0:02:52]} 10... Nf6 {[%clk 0:02:52.9]} 11. Qc2 {[%clk 0:02:49.9]}
11... Bg6 {[%clk 0:02:51.8]} 12. Qb3 {[%clk 0:02:49.4]} 12... Qb6 {[%clk
0:02:50.8]} 13. O-O {[%clk 0:02:48.2]} 13... Ne4 {[%clk 0:02:47.8]} 14. Rfd1
{[%clk 0:02:39.4]} 14... Be7 {[%clk 0:02:47.3]} 15. Rac1 {[%clk 0:02:34.6]}
15... O-O {[%clk 0:02:35.3]} 16. Qxb6 {[%clk 0:02:32.2]} 16... axb6 {[%clk
0:02:34.7]} 17. a3 {[%clk 0:02:32.3]} 17... b5 {[%clk 0:02:32.9]} 18. Ne5 {[%clk
0:02:31.1]} 18... Rfd8 {[%clk 0:02:28.3]} 19. f3 {[%clk 0:02:29]} 19... Nd6
{[%clk 0:02:27.7]} 20. Nd3 {[%clk 0:02:25.8]} 20... Nc4 {[%clk 0:02:26.1]} 21.
Rc2 {[%clk 0:02:20.3]} 21... Bd6 {[%clk 0:02:13.4]} 22. Kf2 {[%clk 0:02:15.2]}
22... Bxf4 {[%clk 0:02:10.8]} 23. exf4 {[%clk 0:02:14.3]} 23... Kf8 {[%clk
0:02:01.4]} 24. Bf1 {[%clk 0:02:13.7]} 24... Ke7 {[%clk 0:01:56.3]} 25. Re2
{[%clk 0:02:13.2]} 25... Bxd3 {[%clk 0:01:54.8]} 26. Rxd3 {[%clk 0:02:12.7]}
26... g6 {[%clk 0:01:53.6]} 27. Rd1 {[%clk 0:02:11.4]} 27... Kd7 {[%clk
0:01:52.8]} 28. Rc2 {[%clk 0:02:11.4]} 28... Kc7 {[%clk 0:01:51.4]} 29. Bxc4
{[%clk 0:02:10.7]} 29... bxc4 {[%clk 0:01:51]} 30. Re1 {[%clk 0:02:09.9]} 30...
Ra5 {[%clk 0:01:47.6]} 31. g4 {[%clk 0:02:08]} 31... Raa8 {[%clk 0:01:44.9]} 32.
Rce2 {[%clk 0:02:06.8]} 32... Re8 {[%clk 0:01:39.6]} 33. Kg3 {[%clk 0:02:06.5]}
33... Re7 {[%clk 0:01:37.2]} 34. h4 {[%clk 0:02:06.5]} 34... Rae8 {[%clk
0:01:36.5]} 35. Rh1 {[%clk 0:02:06.1]} 35... Kd6 {[%clk 0:01:33.6]} 36. h5
{[%clk 0:02:05.9]} 36... b6 {[%clk 0:01:29.3]} 37. Reh2 {[%clk 0:02:04.7]} 37...
c5 {[%clk 0:01:28.3]} 38. Rd2 {[%clk 0:01:58.2]} 38... cxd4 {[%clk 0:01:27.7]}
39. Rxd4 {[%clk 0:01:56.5]} 39... f6 {[%clk 0:01:25.9]} 40. hxg6 {[%clk
0:01:55.4]} 40... hxg6 {[%clk 0:01:26.2]} 41. Rhd1 {[%clk 0:01:53.2]} 41... Kc5
{[%clk 0:01:24.8]} 42. R4d2 {[%clk 0:01:47.7]} 42... Rd8 {[%clk 0:01:20.7]} 43.
Rh1 {[%clk 0:01:45.1]} 43... e5 {[%clk 0:01:20.3]} 44. fxe5 {[%clk 0:01:44.9]}
44... fxe5 {[%clk 0:01:20.5]} 45. Rh6 {[%clk 0:01:43.5]} 45... Rd6 {[%clk
0:01:20.6]} 46. Rh8 {[%clk 0:01:35.1]} 46... b5 {[%clk 0:01:12.2]} 47. Rc8+
{[%clk 0:01:32.7]} 47... Rc6 {[%clk 0:01:12.5]} 48. Rd8 {[%clk 0:01:29.6]} 48...
Rd6 {[%clk 0:01:12.7]} 49. Rc8+ {[%clk 0:01:29.1]} 49... Kb6 {[%clk 0:01:12.3]}
50. Rb8+ {[%clk 0:01:22.1]} 50... Kc6 {[%clk 0:01:10.5]} 51. Rc8+ {[%clk
0:01:21.9]} 51... Kb6 {[%clk 0:01:09.3]} 52. Rb8+ {[%clk 0:01:21.6]} 52... Rb7
{[%clk 0:01:08.9]} 53. Re8 {[%clk 0:01:21.1]} 53... d4 {[%clk 0:01:08.1]} 54.
Rxe5 {[%clk 0:01:13.4]} 54... d3 {[%clk 0:00:41.6]} 55. f4 {[%clk 0:01:10.4]}
55... Rh7 {[%clk 0:00:36.7]} 56. f5 {[%clk 0:01:07.1]} 56... gxf5 {[%clk
0:00:36.4]} 57. Rxf5 {[%clk 0:01:06.1]} 57... Rh1 {[%clk 0:00:35.9]} 58. g5
{[%clk 0:01:01.5]} 58... Rg1+ {[%clk 0:00:35.6]} 59. Kh2 {[%clk 0:00:59.2]}
59... Re1 {[%clk 0:00:35.3]} 60. Rff2 {[%clk 0:00:58.1]} 60... Rg6 {[%clk
0:00:33.7]} 61. Rg2 {[%clk 0:00:57.5]} 61... Re5 {[%clk 0:00:33.8]} 62. Kh3
{[%clk 0:00:34.1]} 62... Rexg5 {[%clk 0:00:33.4]} 63. Rxg5 {[%clk 0:00:33.7]}
63... Rxg5 {[%clk 0:00:33.6]} 64. Rf2 {[%clk 0:00:33.4]} 64... Ka5 {[%clk
0:00:32.8]} 65. Kh4 {[%clk 0:00:32.7]} 65... Rg1 {[%clk 0:00:32]} 66. Kh3 {[%clk
0:00:30.4]} 66... Ka4 {[%clk 0:00:31.9]} 67. Kh2 {[%clk 0:00:30.2]} 67... Rg5
{[%clk 0:00:31.5]} 68. Kh3 {[%clk 0:00:27.8]} 68... Kb3 {[%clk 0:00:31.7]} 69.
Kh4 {[%clk 0:00:27.8]} 69... Re5 {[%clk 0:00:29.1]} 70. Kg4 {[%clk 0:00:27.2]}
70... Re2 {[%clk 0:00:29.1]} 0-1

[Event "*** Titled Tuesday Blitz"]
[Site "Chess.com"]
[Date "2020.12.29"]
[Round "4"]
[White "FGHSMN"]
[Black "AryanTari"]
[Result "0-1"]
[WhiteElo "2650"]
[BlackElo "2887"]
[TimeControl "180+1"]
[EndTime "10:39:47 PST"]
[Termination "AryanTari won by checkmate"]

1. e4 {[%clk 0:03:00.9]} 1... c6 {[%clk 0:02:50.7]} 2. d4 {[%clk 0:03:00.3]}
2... d5 {[%clk 0:02:45.6]} 3. Nc3 {[%clk 0:03:00.1]} 3... dxe4 {[%clk
0:02:41.3]} 4. Nxe4 {[%clk 0:03:01]} 4... Bf5 {[%clk 0:02:41.8]} 5. Ng3 {[%clk
0:03:00.6]} 5... Bg6 {[%clk 0:02:40.4]} 6. h4 {[%clk 0:02:59.3]} 6... h6 {[%clk
0:02:39.7]} 7. N1e2 {[%clk 0:02:59.2]} 7... e5 {[%clk 0:02:35.6]} 8. dxe5 {[%clk
0:02:57.1]} 8... Qa5+ {[%clk 0:02:35.2]} 9. Bd2 {[%clk 0:02:54.3]} 9... Qxe5
{[%clk 0:02:35]} 10. Bc3 {[%clk 0:02:53.9]} 10... Qe7 {[%clk 0:02:30.4]} 11. Qd2
{[%clk 0:02:52.7]} 11... Nd7 {[%clk 0:02:25.8]} 12. O-O-O {[%clk 0:02:50.4]}
12... O-O-O {[%clk 0:02:24.9]} 13. Nf4 {[%clk 0:02:45.6]} 13... Nb6 {[%clk
0:02:24.5]} 14. Qxd8+ {[%clk 0:02:41.1]} 14... Qxd8 {[%clk 0:02:25.4]} 15. Rxd8+
{[%clk 0:02:41.3]} 15... Kxd8 {[%clk 0:02:26.3]} 16. Ngh5 {[%clk 0:02:02.8]}
16... Nd5 {[%clk 0:02:17.3]} 17. Nxd5 {[%clk 0:01:42]} 17... Bxh5 {[%clk
0:02:17.1]} 18. Nf4 {[%clk 0:01:41]} 18... Bg4 {[%clk 0:02:16.2]} 19. f3 {[%clk
0:01:34.9]} 19... Bd6 {[%clk 0:02:07.6]} 20. Nd3 {[%clk 0:01:21.9]} 20... Bc8
{[%clk 0:02:05.8]} 21. Bxg7 {[%clk 0:01:22.1]} 21... Rh7 {[%clk 0:02:06.2]} 22.
Bc3 {[%clk 0:01:22.3]} 22... Ne7 {[%clk 0:01:58.8]} 23. Be5 {[%clk 0:01:21.3]}
23... Kc7 {[%clk 0:01:54.9]} 24. Bxd6+ {[%clk 0:01:20.4]} 24... Kxd6 {[%clk
0:01:55.8]} 25. Nf4 {[%clk 0:01:19.5]} 25... Rg7 {[%clk 0:01:51.8]} 26. g4
{[%clk 0:01:13.9]} 26... f5 {[%clk 0:01:48.2]} 27. Nh5 {[%clk 0:01:08.3]} 27...
Rg8 {[%clk 0:01:46.1]} 28. Bc4 {[%clk 0:01:07.2]} 28... Nd5 {[%clk 0:01:39.4]}
29. Bxd5 {[%clk 0:01:05.3]} 29... cxd5 {[%clk 0:01:37.5]} 30. gxf5 {[%clk
0:00:40.1]} 30... Bxf5 {[%clk 0:01:38.4]} 31. Nf4 {[%clk 0:00:38.1]} 31... Rg3
{[%clk 0:01:35.2]} 32. Rf1 {[%clk 0:00:38.1]} 32... Ke5 {[%clk 0:01:29.4]} 33.
Ne2 {[%clk 0:00:38.3]} 33... Rh3 {[%clk 0:01:28.8]} 34. Kd2 {[%clk 0:00:38.8]}
34... Rxh4 {[%clk 0:01:25.4]} 35. c3 {[%clk 0:00:39.4]} 35... h5 {[%clk
0:01:19.3]} 36. Ke3 {[%clk 0:00:39.3]} 36... Rh2 {[%clk 0:01:15.6]} 37. Rf2
{[%clk 0:00:33]} 37... Rxf2 {[%clk 0:01:12.1]} 38. Kxf2 {[%clk 0:00:33.9]} 38...
h4 {[%clk 0:01:12.7]} 39. Kg2 {[%clk 0:00:30.7]} 39... a5 {[%clk 0:01:09]} 40.
Nd4 {[%clk 0:00:25.4]} 40... Kf4 {[%clk 0:01:08.7]} 41. Kf2 {[%clk 0:00:24.9]}
41... a4 {[%clk 0:01:05]} 42. a3 {[%clk 0:00:24.4]} 42... Bd7 {[%clk 0:01:01.8]}
43. Ne2+ {[%clk 0:00:24.2]} 43... Kg5 {[%clk 0:00:58.4]} 44. Kg2 {[%clk
0:00:22.3]} 44... Be8 {[%clk 0:00:53.6]} 45. Ng1 {[%clk 0:00:21.6]} 45... Kf4
{[%clk 0:00:43.8]} 46. Kf2 {[%clk 0:00:21.4]} 46... Bb5 {[%clk 0:00:44.4]} 47.
Nh3+ {[%clk 0:00:21]} 47... Ke5 {[%clk 0:00:44.8]} 48. Ke3 {[%clk 0:00:20.6]}
48... Bf1 {[%clk 0:00:41.9]} 49. Nf2 {[%clk 0:00:15.4]} 49... Kf5 {[%clk
0:00:29.6]} 50. Ng4 {[%clk 0:00:15.4]} 50... Bh3 {[%clk 0:00:30]} 51. Nf2 {[%clk
0:00:12.9]} 51... Bg2 {[%clk 0:00:30]} 52. Ng4 {[%clk 0:00:13.1]} 52... h3
{[%clk 0:00:29.9]} 53. Nh2 {[%clk 0:00:13]} 53... Kg5 {[%clk 0:00:29.3]} 54. Kf2
{[%clk 0:00:12]} 54... Kf4 {[%clk 0:00:29.1]} 55. Ng4 {[%clk 0:00:10.9]} 55...
Bxf3 {[%clk 0:00:28.8]} 56. Nh2 {[%clk 0:00:11.1]} 56... Bg2 {[%clk 0:00:27.2]}
57. Kg1 {[%clk 0:00:08.8]} 57... Kg3 {[%clk 0:00:26.2]} 58. c4 {[%clk
0:00:07.5]} 58... dxc4 {[%clk 0:00:25.7]} 59. b3 {[%clk 0:00:07.5]} 59... axb3
{[%clk 0:00:25.8]} 60. a4 {[%clk 0:00:07.8]} 60... b2 {[%clk 0:00:25.9]} 61.
Nf1+ {[%clk 0:00:08.4]} 61... Bxf1 {[%clk 0:00:25.7]} 62. a5 {[%clk 0:00:09.3]}
62... b1=Q {[%clk 0:00:25.7]} 63. Kh1 {[%clk 0:00:09.5]} 63... Bg2# {[%clk
0:00:26]} 0-1

[Event "*** Titled Tuesday Blitz"]
[Site "Chess.com"]
[Date "2020.12.29"]
[Round "4"]
[White "FishThatRoared"]
[Black "Chernov_Alexander_A"]
[Result "0-1"]
[WhiteElo "2099"]
[BlackElo "2312"]
[TimeControl "180+1"]
[EndTime "10:39:47 PST"]
[Termination "Chernov_Alexander_A won on time"]

1. e4 {[%clk 0:03:00.9]} 1... e5 {[%clk 0:02:59.6]} 2. Nf3 {[%clk 0:03:00.1]}
2... Nc6 {[%clk 0:02:59.6]} 3. Bb5 {[%clk 0:03:00.4]} 3... Bc5 {[%clk
0:02:59.3]} 4. O-O {[%clk 0:02:59.7]} 4... Nd4 {[%clk 0:02:58.9]} 5. Nxd4 {[%clk
0:02:56.8]} 5... Bxd4 {[%clk 0:02:58.9]} 6. c3 {[%clk 0:02:56.3]} 6... Bb6
{[%clk 0:02:59.2]} 7. d4 {[%clk 0:02:56.3]} 7... c6 {[%clk 0:02:59.5]} 8. Ba4
{[%clk 0:02:54.5]} 8... d6 {[%clk 0:02:59.8]} 9. Bb3 {[%clk 0:02:41.8]} 9... Nf6
{[%clk 0:02:59]} 10. f3 {[%clk 0:02:19.3]} 10... h6 {[%clk 0:02:48.3]} 11. Be3
{[%clk 0:02:18.7]} 11... O-O {[%clk 0:02:40.4]} 12. Na3 {[%clk 0:02:15.1]} 12...
d5 {[%clk 0:02:37.6]} 13. exd5 {[%clk 0:02:07]} 13... Nxd5 {[%clk 0:02:33.5]}
14. Bf2 {[%clk 0:02:06.7]} 14... exd4 {[%clk 0:02:26.3]} 15. Bxd4 {[%clk
0:02:05.2]} 15... Nf4 {[%clk 0:02:21.1]} 16. Bxb6 {[%clk 0:01:55.1]} 16... Qxb6+
{[%clk 0:02:14.7]} 17. Kh1 {[%clk 0:01:54]} 17... Be6 {[%clk 0:02:05.7]} 18. Nc4
{[%clk 0:01:45.7]} 18... Bxc4 {[%clk 0:01:41.2]} 19. Bxc4 {[%clk 0:01:44.8]}
19... Qc5 {[%clk 0:01:41.2]} 20. Bb3 {[%clk 0:01:40.9]} 20... Rad8 {[%clk
0:01:39.7]} 21. Qc2 {[%clk 0:01:38.5]} 21... Qg5 {[%clk 0:01:21.7]} 22. Rad1
{[%clk 0:01:19.6]} 22... h5 {[%clk 0:01:13.6]} 23. g3 {[%clk 0:01:09.2]} 23...
Ng6 {[%clk 0:01:01.1]} 24. f4 {[%clk 0:01:08.7]} 24... Qg4 {[%clk 0:00:59]} 25.
f5 {[%clk 0:00:58.3]} 25... Ne5 {[%clk 0:00:56.2]} 26. f6 {[%clk 0:00:48.1]}
26... Qh3 {[%clk 0:00:48.3]} 27. Qg2 {[%clk 0:00:42.6]} 27... Qg4 {[%clk
0:00:46.3]} 28. fxg7 {[%clk 0:00:39.9]} 28... Kxg7 {[%clk 0:00:45.5]} 29. h3
{[%clk 0:00:33.7]} 29... Qg5 {[%clk 0:00:43.3]} 30. Bc2 {[%clk 0:00:29.8]} 30...
f6 {[%clk 0:00:36.2]} 31. Qe4 {[%clk 0:00:23.2]} 31... Qh6 {[%clk 0:00:23.6]}
32. Rxd8 {[%clk 0:00:18.1]} 32... Rxd8 {[%clk 0:00:22.6]} 33. Qf4 {[%clk
0:00:18.1]} 33... Qxf4 {[%clk 0:00:20.7]} 34. gxf4 {[%clk 0:00:17.8]} 34... Nc4
{[%clk 0:00:20.8]} 35. b3 {[%clk 0:00:15.3]} 35... Ne3 {[%clk 0:00:18.2]} 36.
Rf2 {[%clk 0:00:14.9]} 36... Nxc2 {[%clk 0:00:16.7]} 37. Rxc2 {[%clk 0:00:14.8]}
37... Rd3 {[%clk 0:00:16.9]} 38. Kg2 {[%clk 0:00:14.6]} 38... Kg6 {[%clk
0:00:14.6]} 39. c4 {[%clk 0:00:13.8]} 39... Kf5 {[%clk 0:00:14.2]} 40. Re2
{[%clk 0:00:11.3]} 40... Kxf4 {[%clk 0:00:12.9]} 41. Re7 {[%clk 0:00:11]} 41...
Rd2+ {[%clk 0:00:12.7]} 42. Kf1 {[%clk 0:00:09.4]} 42... Rxa2 {[%clk 0:00:10.1]}
43. Rxb7 {[%clk 0:00:08.6]} 43... f5 {[%clk 0:00:09.9]} 44. Rc7 {[%clk
0:00:03.6]} 44... Kf3 {[%clk 0:00:08.9]} 45. Ke1 {[%clk 0:00:02.4]} 45... f4
{[%clk 0:00:07.3]} 46. Rxc6 {[%clk 0:00:02]} 46... Kg3 {[%clk 0:00:06.4]} 47.
Rg6+ {[%clk 0:00:01.7]} 47... Kxh3 {[%clk 0:00:05.8]} 48. Rf6 {[%clk 0:00:02.2]}
48... Kg3 {[%clk 0:00:05]} 49. Rg6+ {[%clk 0:00:02.3]} 49... Kf3 {[%clk
0:00:05]} 50. Rh6 {[%clk 0:00:02.1]} 50... Ke3 {[%clk 0:00:03.5]} 51. Kd1 {[%clk
0:00:02.2]} 51... f3 {[%clk 0:00:02.8]} 52. Re6+ {[%clk 0:00:01.9]} 52... Kf4
{[%clk 0:00:02]} 0-1

[Event "*** Titled Tuesday Blitz"]
[Site "Chess.com"]
[Date "2020.12.29"]
[Round "4"]
[White "hurricane7791"]
[Black "WPWPWP-2015"]
[Result "0-1"]
[WhiteElo "2622"]
[BlackElo "2457"]
[TimeControl "180+1"]
[EndTime "10:39:48 PST"]
[Termination "WPWPWP-2015 won by checkmate"]

1. d4 {[%clk 0:02:59.7]} 1... Nf6 {[%clk 0:02:58.2]} 2. c4 {[%clk 0:02:57.4]}
2... e6 {[%clk 0:02:58.3]} 3. Nc3 {[%clk 0:02:57.7]} 3... Bb4 {[%clk 0:02:57.3]}
4. Qc2 {[%clk 0:02:58.3]} 4... d5 {[%clk 0:02:57]} 5. cxd5 {[%clk 0:02:57.6]}
5... Qxd5 {[%clk 0:02:57]} 6. Nf3 {[%clk 0:02:56.7]} 6... Qf5 {[%clk 0:02:56.4]}
7. Qb3 {[%clk 0:02:56.9]} 7... Nc6 {[%clk 0:02:54.7]} 8. e3 {[%clk 0:02:57]}
8... O-O {[%clk 0:02:53.5]} 9. a3 {[%clk 0:02:57]} 9... Bd6 {[%clk 0:02:52.5]}
10. h3 {[%clk 0:02:55.9]} 10... Rd8 {[%clk 0:02:47.1]} 11. Be2 {[%clk
0:02:46.8]} 11... e5 {[%clk 0:02:43.6]} 12. d5 {[%clk 0:02:46.1]} 12... Ne7
{[%clk 0:02:41.7]} 13. g4 {[%clk 0:02:40.9]} 13... Qd7 {[%clk 0:02:39.4]} 14. e4
{[%clk 0:02:32.3]} 14... a6 {[%clk 0:02:30.4]} 15. Bg5 {[%clk 0:02:30]} 15...
Ne8 {[%clk 0:02:27.6]} 16. Be3 {[%clk 0:02:27.9]} 16... Ng6 {[%clk 0:02:11.6]}
17. O-O-O {[%clk 0:02:22.6]} 17... Qe7 {[%clk 0:02:10]} 18. h4 {[%clk 0:02:14]}
18... Bc5 {[%clk 0:02:04.3]} 19. h5 {[%clk 0:02:06.2]} 19... Nf4 {[%clk
0:02:02.5]} 20. Qc4 {[%clk 0:01:31.8]} 20... Bxe3+ {[%clk 0:01:26.3]} 21. fxe3
{[%clk 0:01:32.7]} 21... Nd6 {[%clk 0:01:25.9]} 22. Qb4 {[%clk 0:01:21.9]} 22...
a5 {[%clk 0:01:23.5]} 23. Qa4 {[%clk 0:01:21]} 23... b5 {[%clk 0:01:07.2]} 24.
Bxb5 {[%clk 0:01:18.8]} 24... Nxb5 {[%clk 0:01:02.8]} 25. Qxb5 {[%clk
0:01:16.2]} 25... Ba6 {[%clk 0:01:01.1]} 26. Qa4 {[%clk 0:01:13]} 26... Nd3+
{[%clk 0:00:59.3]} 27. Kb1 {[%clk 0:01:13.2]} 27... Nf2 {[%clk 0:00:58.2]} 28.
h6 {[%clk 0:01:02.7]} 28... Nxd1 {[%clk 0:00:52.6]} 29. Rxd1 {[%clk 0:00:58]}
29... g6 {[%clk 0:00:50.6]} 30. g5 {[%clk 0:00:55.9]} 30... Qd6 {[%clk
0:00:40.8]} 31. Ka1 {[%clk 0:00:47.5]} 31... Rdb8 {[%clk 0:00:39.5]} 32. Rc1
{[%clk 0:00:47.3]} 32... Rb6 {[%clk 0:00:37]} 33. Rc2 {[%clk 0:00:41.2]} 33...
Rab8 {[%clk 0:00:27.2]} 34. Rd2 {[%clk 0:00:35.7]} 34... Bc8 {[%clk 0:00:26.9]}
35. Qc2 {[%clk 0:00:25.9]} 35... Bg4 {[%clk 0:00:26.2]} 36. Ne1 {[%clk
0:00:24.4]} 36... Rxb2 {[%clk 0:00:20.7]} 37. Qxb2 {[%clk 0:00:25.3]} 37... Rxb2
{[%clk 0:00:19.6]} 38. Kxb2 {[%clk 0:00:26.2]} 38... Qb6+ {[%clk 0:00:18.6]} 39.
Kc2 {[%clk 0:00:25.7]} 39... Qxe3 {[%clk 0:00:18.1]} 40. Nd3 {[%clk 0:00:26.3]}
40... Qxg5 {[%clk 0:00:16]} 41. Rf2 {[%clk 0:00:23.6]} 41... f6 {[%clk
0:00:14.1]} 42. Nb5 {[%clk 0:00:22.3]} 42... Qh4 {[%clk 0:00:12.7]} 43. Nxc7
{[%clk 0:00:20.4]} 43... Qg3 {[%clk 0:00:12.6]} 44. Ne8 {[%clk 0:00:18.9]} 44...
f5 {[%clk 0:00:12]} 45. Nf6+ {[%clk 0:00:18.8]} 45... Kf7 {[%clk 0:00:11.7]} 46.
Nxg4 {[%clk 0:00:19.2]} 46... Ke8 {[%clk 0:00:06.1]} 47. Ngxe5 {[%clk
0:00:14.6]} 47... fxe4 {[%clk 0:00:06.3]} 48. Re2 {[%clk 0:00:13.3]} 48... exd3+
{[%clk 0:00:05.9]} 49. Nxd3+ {[%clk 0:00:14.2]} 49... Kd8 {[%clk 0:00:05.9]} 50.
Kc3 {[%clk 0:00:14.5]} 50... Qf3 {[%clk 0:00:05.9]} 51. Re5 {[%clk 0:00:14.3]}
51... Qf1 {[%clk 0:00:05.8]} 52. Kd4 {[%clk 0:00:14.6]} 52... Qa1+ {[%clk
0:00:05.7]} 53. Kc5 {[%clk 0:00:14.1]} 53... Qc3+ {[%clk 0:00:05.8]} 54. Kd6
{[%clk 0:00:13.1]} 54... Qxd3 {[%clk 0:00:06.2]} 55. Re6 {[%clk 0:00:13.8]}
55... Qg3+ {[%clk 0:00:06.2]} 56. Kc6 {[%clk 0:00:14.3]} 56... Qc3+ {[%clk
0:00:06.1]} 57. Kd6 {[%clk 0:00:14.6]} 57... Qxa3+ {[%clk 0:00:06.3]} 58. Kc6
{[%clk 0:00:15.3]} 58... Qc3+ {[%clk 0:00:06.4]} 59. Kd6 {[%clk 0:00:15.8]}
59... Qc7# {[%clk 0:00:06.5]} 0-1

[Event "*** Titled Tuesday Blitz"]
[Site "Chess.com"]
[Date "2020.12.29"]
[Round "4"]
[White "igorkovalenko"]
[Black "kingofthenil"]
[Result "1-0"]
[WhiteElo "2917"]
[BlackElo "2742"]
[TimeControl "180+1"]
[EndTime "10:39:52 PST"]
[Termination "igorkovalenko won by checkmate"]

1. d4 {[%clk 0:03:00.9]} 1... Nf6 {[%clk 0:03:00]} 2. Nf3 {[%clk 0:03:00.8]}
2... d5 {[%clk 0:02:58.8]} 3. c4 {[%clk 0:03:00.8]} 3... e6 {[%clk 0:02:59]} 4.
Nc3 {[%clk 0:03:01]} 4... h6 {[%clk 0:02:59.3]} 5. g3 {[%clk 0:02:52.1]} 5...
Bd6 {[%clk 0:02:58.3]} 6. Bg2 {[%clk 0:02:52]} 6... O-O {[%clk 0:02:58.9]} 7.
O-O {[%clk 0:02:52.2]} 7... Nc6 {[%clk 0:02:59.5]} 8. b3 {[%clk 0:02:36.5]} 8...
dxc4 {[%clk 0:02:58.3]} 9. bxc4 {[%clk 0:02:36.4]} 9... e5 {[%clk 0:02:59]} 10.
d5 {[%clk 0:02:36.8]} 10... Na5 {[%clk 0:02:58.3]} 11. Nd2 {[%clk 0:02:23.3]}
11... Bf5 {[%clk 0:02:28.1]} 12. e4 {[%clk 0:02:08.7]} 12... Bg4 {[%clk
0:02:28.3]} 13. Qc2 {[%clk 0:01:57.4]} 13... Nd7 {[%clk 0:02:20.9]} 14. f3
{[%clk 0:01:56.3]} 14... Bh5 {[%clk 0:02:20.7]} 15. Nd1 {[%clk 0:01:46.6]} 15...
b6 {[%clk 0:02:12.1]} 16. Nb3 {[%clk 0:01:45.5]} 16... Nb7 {[%clk 0:02:07.3]}
17. Ne3 {[%clk 0:01:33.9]} 17... a5 {[%clk 0:02:05.1]} 18. Bd2 {[%clk
0:01:23.8]} 18... a4 {[%clk 0:02:04.3]} 19. Nc1 {[%clk 0:01:23.9]} 19... Bc5
{[%clk 0:02:03.8]} 20. Kh1 {[%clk 0:01:23.9]} 20... Bd4 {[%clk 0:02:03.6]} 21.
Rb1 {[%clk 0:01:23.4]} 21... Ndc5 {[%clk 0:02:02.9]} 22. Ne2 {[%clk 0:01:22]}
22... Nd6 {[%clk 0:01:54.6]} 23. g4 {[%clk 0:01:09]} 23... Bg6 {[%clk
0:01:54.4]} 24. Nxd4 {[%clk 0:01:03.7]} 24... exd4 {[%clk 0:01:55.3]} 25. Nf5
{[%clk 0:01:04.1]} 25... Bxf5 {[%clk 0:01:45.1]} 26. gxf5 {[%clk 0:01:04.1]}
26... a3 {[%clk 0:01:41.9]} 27. Rg1 {[%clk 0:01:02]} 27... Ra4 {[%clk
0:01:31.6]} 28. Bf1 {[%clk 0:01:01.6]} 28... Qh4 {[%clk 0:01:20.6]} 29. Rg4
{[%clk 0:00:54.6]} 29... Qh5 {[%clk 0:01:14.6]} 30. Rg3 {[%clk 0:00:44.7]} 30...
Qh4 {[%clk 0:00:54]} 31. Qc1 {[%clk 0:00:25.7]} 31... Kh7 {[%clk 0:00:43.3]} 32.
Qe1 {[%clk 0:00:21.3]} 32... g6 {[%clk 0:00:31.1]} 33. Rc1 {[%clk 0:00:13.7]}
33... h5 {[%clk 0:00:25.8]} 34. Qf2 {[%clk 0:00:13.6]} 34... Ndxe4 {[%clk
0:00:24.9]} 35. fxe4 {[%clk 0:00:13.7]} 35... Nxe4 {[%clk 0:00:25.8]} 36. fxg6+
{[%clk 0:00:12.3]} 36... fxg6 {[%clk 0:00:22]} 37. Qxf8 {[%clk 0:00:13.2]} 37...
Nxg3+ {[%clk 0:00:22.3]} 38. Kg2 {[%clk 0:00:12.6]} 38... Ne4 {[%clk 0:00:17.9]}
39. Qf7+ {[%clk 0:00:11.9]} 39... Kh8 {[%clk 0:00:18.5]} 40. Qf8+ {[%clk
0:00:11.6]} 40... Kh7 {[%clk 0:00:18.9]} 41. Qf7+ {[%clk 0:00:12.1]} 41... Kh8
{[%clk 0:00:19.4]} 42. Be1 {[%clk 0:00:11.1]} 42... Qg4+ {[%clk 0:00:18.7]} 43.
Kh1 {[%clk 0:00:10.7]} 43... Ra8 {[%clk 0:00:14.5]} 44. Bg2 {[%clk 0:00:10.6]}
44... d3 {[%clk 0:00:10]} 45. Bxe4 {[%clk 0:00:07]} 45... Qxe4+ {[%clk
0:00:10.9]} 46. Kg1 {[%clk 0:00:06.7]} 46... Qe3+ {[%clk 0:00:11.4]} 47. Kg2
{[%clk 0:00:06.2]} 47... Qxc1 {[%clk 0:00:10.4]} 48. Qf6+ {[%clk 0:00:06.5]}
48... Kh7 {[%clk 0:00:10.3]} 49. Qf7+ {[%clk 0:00:06.9]} 49... Kh6 {[%clk
0:00:09.8]} 50. Bg3 {[%clk 0:00:07.3]} 50... Qd2+ {[%clk 0:00:09.1]} 51. Kh3
{[%clk 0:00:07.7]} 51... g5 {[%clk 0:00:05.8]} 52. Qf6+ {[%clk 0:00:06.8]} 52...
Kh7 {[%clk 0:00:06.3]} 53. Qf7+ {[%clk 0:00:07.2]} 53... Kh6 {[%clk 0:00:06.8]}
54. Qe6+ {[%clk 0:00:07.3]} 54... Kh7 {[%clk 0:00:06.6]} 55. Qd7+ {[%clk
0:00:07.8]} 55... Kh6 {[%clk 0:00:06.8]} 56. Qc6+ {[%clk 0:00:08.1]} 56... Kh7
{[%clk 0:00:06.4]} 57. Qxc7+ {[%clk 0:00:08.6]} 57... Kg6 {[%clk 0:00:06.1]} 58.
Qc6+ {[%clk 0:00:08]} 58... Kf5 {[%clk 0:00:06.5]} 59. Qe6# {[%clk 0:00:07.7]}
1-0